[Event "2nd Gujarat Open 2019"]
[Site "Ahmedabad, Gujarat"]
[Date "2019.09.25"]
[Round "6.26"]
[White "Nikhil Magizhnan"]
[Black "Gaikwad, Siddhant"]
[Result "1-0"]
[ECO "B50"]
[WhiteElo "2251"]
[BlackElo "2034"]
[Annotator "NA"]
[PlyCount "93"]
[EventDate "2019.09.22"]
[EventType "swiss"]
[EventCountry "IND"]
[SourceTitle "playchess.com"]
[Source "ChessBase"]
[SourceQuality "1"]
[TimeControl "5400+30"]

1. e4 {[%emt 0:00:00]} c5 {[%emt 0:00:00]} 2. Nf3 {[%emt 0:00:00]} d6 {[%emt 0:00:00]} 3. c3 {[%emt 0:00:00]} Nf6 {[%emt 0:00:00]} 4. Bd3 {[%emt 0:00:00]} Bg4 {[%emt 0:08:54]} 5. Bc2 {[%emt 0:01:31]} Nc6 {[%emt 0:00:35]} 6. d3 {[%emt 0:00:25]} g6 {[%emt 0:01:32]} 7. h3 {[%emt 0:01:06]} Bxf3 {[%emt 0:00:56]} 8. Qxf3 {[%emt 0:00:02]} Bg7 {[%emt 0:00:05]} 9. O-O {[%emt 0:00:13]} O-O {[%emt 0:00:04]} 10. Qe2 {[%emt 0:02:54]} b5 {[%emt 0:02:00]} 11. Be3 {[%emt 0:19:13]} a5 {[%emt 0:03:15]} 12. d4 {[%emt 0:08:26]} cxd4 {[%emt 0:04:12]} 13. cxd4 {[%emt 0:01:09]} Nb4 {[%emt 0:03:09]} 14. Bd3 {[%emt 0:03:01]} Nxd3 {[%emt 0:00:51]} 15. Qxd3 {[%emt 0:00:03]} Qb8 {[%emt 0:03:38]} 16. Nd2 {[%emt 0:01:20]} Rc8 {[%emt 0:00:52]} 17. f4 {[%emt 0:01:39]} Qc7 {[%emt 0:04:42]} 18. Qxb5 {[%emt 0:20:10]} Rab8 {[%emt 0:03:36]} 19. Qe2 {[%emt 0:04:50]} Rb6 20. b3 Rxb3 {[%emt 0:01:08]} 21. Qf2 Rb2 22. Qf3 {[%emt 0:01:10]} Qb7 {[%emt 0:06:23]} 23. Rab1 {[%emt 0:10:51]} Rcc2 {[%emt 0:07:30]} 24. Rxb2 {[%emt 0:01:55]} Rxb2 {[%emt 0:04:38]} 25. Rc1 {[%emt 0:09:27]} Rxa2 {[%emt 0:06:37]} 26. f5 {[%emt 0:01:28]} h5 {[%emt 0:04:51]} 27. e5 {[%emt 0:04:19]} Nd5 {[%emt 0:04:47]} 28. f6 {[%emt 0:06:41]} exf6 {[%emt 0:10:19]} 29. exd6 {[%emt 0:00:05]} Rb2 {[%emt 0:02:33]} 30. Nc4 {[%emt 0:02:11]} Rb5 {[%emt 0:01:31]} 31. Bf2 {[%emt 0:00:37]} f5 {[%emt 0:02:33]} 32. Re1 {[%emt 0:00:43]} a4 {[%emt 0:01:24]} 33. Qa3 {[%emt 0:00:29]} Rb3 {[%emt 0:02:48]} 34. Na5 {[%emt 0:00:16]} Qa8 {[%emt 0:04:28]} 35. Qxa4 {[%emt 0:00:42]} Rb8 {[%emt 0:00:07]} 36. d7 {[%emt 0:00:31]} Nf4 {[%emt 0:02:30]} 37. Qc6 {[%emt 0:00:23]} Ne6 {[%emt 0:05:23]} 38. Qxa8 {[%emt 0:00:24]} Rxa8 {[%emt 0:00:05]} 39. d5 {[%emt 0:00:41]} Nd8 {[%emt 0:00:40]} 40. Nc6 {[%emt 0:00:22]} Bf6 {[%emt 0:00:10]} 41. Bb6 {[%emt 0:00:25]} Kg7 {[%emt 0:00:25]} 42. Re8 {[%emt 0:00:36]} Ra1+ {[%emt 0:00:17]} 43. Kh2 {[%emt 0:00:10]} Rd1 {[%emt 0:01:27]} 44. Bxd8 {[%emt 0:00:33]} Bxd8 {[%emt 0:00:06]} 45. Rxd8 {[%emt 0:00:33]} Rxd5 {[%emt 0:00:04]} 46. Rg8+ {[%emt 0:00:26]} Kxg8 {[%emt 0:00:03]} 47. Ne7+ {[%emt 0:00:15]} 1-0

[Event "2nd Gujarat Open 2019"]
[Site "Ahmedabad, Gujarat"]
[Date "2019.09.25"]
[Round "6.27"]
[White "Nayak Rajesh"]
[Black "Sri Sai Baswanth P"]
[Result "0-1"]
[ECO "A04"]
[WhiteElo "2227"]
[BlackElo "2013"]
[Annotator "NA"]
[PlyCount "139"]
[EventDate "2019.09.22"]
[EventType "swiss"]
[EventCountry "IND"]
[SourceTitle "playchess.com"]
[Source "ChessBase"]
[SourceQuality "1"]
[TimeControl "5400+30"]

1. Nf3 {[%emt 0:00:28]} g6 {[%emt 0:00:00]} 2. e4 {[%emt 0:02:08]} Bg7 {[%emt 0:00:05]} 3. d4 {[%emt 0:00:15]} d6 {[%emt 0:00:06]} 4. Bc4 {[%emt 0:01:15]} Nf6 {[%emt 0:00:05]} 5. Qe2 {[%emt 0:01:01]} O-O {[%emt 0:00:15]} 6. h3 {[%emt 0:00:38]} d5 {[%emt 0:01:43]} 7. exd5 {[%emt 0:00:30]} Nxd5 {[%emt 0:00:12]} 8. O-O {[%emt 0:00:16]} c6 {[%emt 0:06:40]} 9. a4 {[%emt 0:03:51]} Nd7 {[%emt 0:01:18]} 10. Bb3 {[%emt 0:01:19]} N7f6 {[%emt 0:05:26]} 11. Na3 {[%emt 0:00:21]} Qc7 {[%emt 0:09:35]} 12. Re1 {[%emt 0:01:42]} e6 {[%emt 0:01:40]} 13. Ne5 {[%emt 0:09:41]} c5 {[%emt 0:05:34]} 14. c4 {[%emt 0:03:33]} Nb4 {[%emt 0:00:09]} 15. Nb5 {[%emt 0:04:09]} Qe7 {[%emt 0:00:45]} 16. dxc5 {[%emt 0:02:23]} Qxc5 {[%emt 0:00:19]} 17. Nd3 {[%emt 0:05:12]} Nxd3 {[%emt 0:02:59]} 18. Qxd3 {[%emt 0:01:18]} Nd7 {[%emt 0:03:09]} 19. Bf4 {[%emt 0:04:39]} e5 {[%emt 0:01:55]} 20. Be3 {[%emt 0:00:51]} Qc6 {[%emt 0:00:30]} 21. Bc2 {[%emt 0:11:38]} a6 {[%emt 0:08:03]} 22. Nd6 {[%emt 0:02:32]} Nc5 {[%emt 0:03:05]} 23. Qa3 {[%emt 0:00:20]} Ne6 {[%emt 0:01:45]} 24. Be4 {[%emt 0:01:54]} Qc7 {[%emt 0:00:08]} 25. Bd5 {[%emt 0:00:18]} Rd8 {[%emt 0:01:59]} 26. c5 {[%emt 0:05:29]} Bf8 {[%emt 0:00:46]} 27. Rad1 {[%emt 0:03:02]} Rb8 {[%emt 0:06:55]} 28. a5 {[%emt 0:04:30]} Bxd6 {[%emt 0:03:53]} 29. Bxe6 {[%emt 0:05:29]} Be7 {[%emt 0:03:39]} 30. Bd5 {[%emt 0:01:23]} Bd7 {[%emt 0:00:07]} 31. Qb3 {[%emt 0:01:01]} Be8 {[%emt 0:00:13]} 32. Qb6 {[%emt 0:00:21]} Qc8 {[%emt 0:01:39]} 33. Qb4 {[%emt 0:03:22]} Bc6 {[%emt 0:00:50]} 34. Ba2 {[%emt 0:04:08]} Qf5 {[%emt 0:01:02]} 35. Qc4 {[%emt 0:00:21]} Rxd1 {[%emt 0:01:05]} 36. Rxd1 {[%emt 0:00:08]} Rd8 {[%emt 0:00:09]} 37. Rxd8+ {[%emt 0:00:08]} Bxd8 {[%emt 0:00:04]} 38. b4 {[%emt 0:00:08]} Qd7 {[%emt 0:01:21]} 39. Qc2 {[%emt 0:01:03]} Bf6 {[%emt 0:03:51]} 40. Bc4 {[%emt 0:00:54]} Kg7 {[%emt 0:00:50]} 41. Qe2 {[%emt 0:01:15]} Qf5 {[%emt 0:00:58]} 42. Bd3 {[%emt 0:00:36]} Qe6 {[%emt 0:01:15]} 43. b5 {[%emt 0:00:36]} axb5 {[%emt 0:03:33]} 44. Bxb5 {[%emt 0:00:09]} Bd8 {[%emt 0:02:56]} 45. Bc4 {[%emt 0:01:57]} Qf5 {[%emt 0:00:24]} 46. a6 {[%emt 0:01:14]} bxa6 {[%emt 0:00:40]} 47. Bxa6 {[%emt 0:00:08]} Qe4 {[%emt 0:00:59]} 48. Qf1 {[%emt 0:00:31]} f5 {[%emt 0:00:30]} 49. Bd3 {[%emt 0:01:24]} Qb4 {[%emt 0:00:48]} 50. Qa1 {[%emt 0:00:47]} Kf6 {[%emt 0:11:55]} 51. Qa6 {[%emt 0:05:20]} Qb7 {[%emt 0:00:07]} 52. Qa2 {[%emt 0:01:16]} f4 {[%emt 0:01:57]} 53. Qg8 {[%emt 0:00:45]} Qe7 {[%emt 0:02:00]} 54. Bd2 {[%emt 0:02:04]} Bc7 {[%emt 0:01:28]} 55. Bc4 {[%emt 0:01:00]} Be8 56. Bb4 {[%emt 0:01:46]} Bc6 {[%emt 0:02:29]} 57. Qc8 {[%emt 0:01:02]} h5 {[%emt 0:00:37]} 58. Bc3 {[%emt 0:01:16]} Kg5 59. Qh8 {[%emt 0:01:31]} Kh4 {[%emt 0:01:23]} 60. Qh6 {[%emt 0:00:50]} Be4 {[%emt 0:00:43]} 61. g3+ {[%emt 0:00:47]} Kxh3 {[%emt 0:00:47]} 62. gxf4 {[%emt 0:00:23]} exf4 {[%emt 0:00:25]} 63. Qh8 {[%emt 0:00:21]} Qxc5 {[%emt 0:01:09]} 64. Bf1+ {[%emt 0:00:49]} Kg4 {[%emt 0:00:09]} 65. Qf6 {[%emt 0:00:31]} Qg5 {[%emt 0:00:36]} 66. f3+ Bxf3 67. Bh3+ Kh4+ 68. Kh2 Qxf6 69. Bxf6+ g5 70. Bc3 0-1

[Event "2nd Gujarat Open 2019"]
[Site "Ahmedabad, Gujarat"]
[Date "2019.09.25"]
[Round "6.28"]
[White "Ziatdinov, Raset"]
[Black "Kadam Om Manish"]
[Result "1-0"]
[ECO "B95"]
[WhiteElo "2222"]
[BlackElo "1930"]
[Annotator "NA"]
[PlyCount "123"]
[EventDate "2019.09.22"]
[EventType "swiss"]
[EventCountry "IND"]
[SourceTitle "playchess.com"]
[Source "ChessBase"]
[SourceQuality "1"]
[TimeControl "5400+30"]

1. e4 {[%emt 0:00:00]} c5 {[%emt 0:00:00]} 2. Nf3 {[%emt 0:00:00]} d6 {[%emt 0:00:00]} 3. d4 {[%emt 0:00:00]} cxd4 {[%emt 0:00:00]} 4. Nxd4 {[%emt 0:00:00]} Nf6 {[%emt 0:00:10]} 5. Nc3 {[%emt 0:00:00]} a6 {[%emt 0:00:08]} 6. Bg5 {[%emt 0:00:00]} e6 {[%emt 0:00:14]} 7. h4 {[%emt 0:01:04]} Be7 {[%emt 0:02:49]} 8. g4 {[%emt 0:01:07]} Nbd7 {[%emt 0:03:27]} 9. Be3 {[%emt 0:03:23]} Ne5 {[%emt 0:21:02]} 10. g5 {[%emt 0:02:14]} Nfg4 {[%emt 0:01:11]} 11. Bc1 {[%emt 0:00:18]} Qb6 {[%emt 0:00:08]} 12. Be2 {[%emt 0:06:40]} Nc6 {[%emt 0:00:16]} 13. Bxg4 {[%emt 0:00:12]} Qxd4 {[%emt 0:00:19]} 14. Qe2 {[%emt 0:00:21]} Ne5 {[%emt 0:07:45]} 15. Be3 {[%emt 0:01:04]} Qb4 {[%emt 0:04:56]} 16. O-O {[%emt 0:01:30]} O-O {[%emt 0:03:30]} 17. Rab1 {[%emt 0:05:08]} d5 {[%emt 0:17:32]} 18. a3 {[%emt 0:02:18]} Qc4 {[%emt 0:00:38]} 19. Qxc4 {[%emt 0:01:43]} dxc4 {[%emt 0:00:34]} 20. Be2 {[%emt 0:00:10]} b5 {[%emt 0:00:04]} 21. f4 {[%emt 0:00:37]} Nd7 {[%emt 0:00:33]} 22. Rbd1 {[%emt 0:02:08]} Bc5 {[%emt 0:02:38]} 23. Kf2 {[%emt 0:03:42]} Rb8 {[%emt 0:03:06]} 24. Bxc5 {[%emt 0:04:02]} Nxc5 {[%emt 0:00:05]} 25. Rd6 {[%emt 0:00:32]} Bb7 {[%emt 0:01:08]} 26. Ke3 {[%emt 0:00:10]} Ba8 {[%emt 0:00:33]} 27. Rd4 {[%emt 0:05:33]} Rfe8 {[%emt 0:00:26]} 28. e5 {[%emt 0:00:52]} a5 {[%emt 0:06:50]} 29. h5 {[%emt 0:03:02]} Kf8 {[%emt 0:05:35]} 30. Rg1 {[%emt 0:00:31]} Ke7 {[%emt 0:02:40]} 31. h6 {[%emt 0:01:24]} g6 {[%emt 0:00:59]} 32. Rb1 {[%emt 0:00:51]} Rec8 {[%emt 0:00:23]} 33. Rf1 {[%emt 0:00:00]} Re8 {[%emt 0:00:08]} 34. Rb1 {[%emt 0:01:00]} Rec8 {[%emt 0:00:52]} 35. Nd1 {[%emt 0:02:09]} Bd5 {[%emt 0:07:07]} 36. Nf2 {[%emt 0:02:35]} Na4 {[%emt 0:01:10]} 37. Bf3 {[%emt 0:02:22]} Bxf3 {[%emt 0:00:23]} 38. Kxf3 {[%emt 0:00:03]} b4 {[%emt 0:00:05]} 39. axb4 {[%emt 0:00:36]} Rxb4 {[%emt 0:00:03]} 40. Ra1 {[%emt 0:03:41]} c3 {[%emt 0:07:20]} 41. Rxb4 {[%emt 0:00:11]} axb4 {[%emt 0:00:03]} 42. b3 {[%emt 0:01:55]} Nc5 {[%emt 0:00:06]} 43. Ne4 {[%emt 0:06:30]} Nxe4 {[%emt 0:01:12]} 44. Kxe4 {[%emt 0:00:03]} Rd8 {[%emt 0:00:04]} 45. Ra4 {[%emt 0:00:16]} Rd2 {[%emt 0:00:03]} 46. Rxb4 {[%emt 0:00:16]} Rxc2 {[%emt 0:00:03]} 47. Kd3 {[%emt 0:00:37]} Rc1 {[%emt 0:01:28]} 48. Rc4 {[%emt 0:00:48]} c2 {[%emt 0:00:04]} 49. b4 {[%emt 0:00:39]} Kd7 {[%emt 0:00:12]} 50. Kd2 {[%emt 0:01:11]} Rf1 {[%emt 0:00:42]} 51. Kxc2 {[%emt 0:00:09]} Rf2+ {[%emt 0:00:02]} 52. Kb3 {[%emt 0:00:09]} Rf3+ {[%emt 0:00:03]} 53. Ka4 {[%emt 0:00:05]} Rf1 {[%emt 0:00:02]} 54. b5 {[%emt 0:00:11]} Ra1+ {[%emt 0:00:03]} 55. Kb4 {[%emt 0:00:06]} Rb1+ {[%emt 0:00:02]} 56. Ka5 {[%emt 0:00:06]} Ra1+ {[%emt 0:00:03]} 57. Kb6 {[%emt 0:00:05]} Ra8 {[%emt 0:00:03]} 58. Kb7 {[%emt 0:00:16]} Ra2 {[%emt 0:00:04]} 59. b6 {[%emt 0:00:12]} Rb2 {[%emt 0:00:05]} 60. Ka7 {[%emt 0:00:06]} Ra2+ {[%emt 0:00:14]} 61. Kb8 {[%emt 0:00:07]} Rb2 {[%emt 0:00:05]} 62. b7 {[%emt 0:00:08]} 1-0

[Event "2nd Gujarat Open 2019"]
[Site "Ahmedabad, Gujarat"]
[Date "2019.09.25"]
[Round "6.29"]
[White "Kshatriya Nitin Vekhande"]
[Black "Deshmukh, Anup"]
[Result "1/2-1/2"]
[ECO "B00"]
[WhiteElo "1926"]
[BlackElo "2193"]
[Annotator "NA"]
[PlyCount "46"]
[EventDate "2019.09.22"]
[EventType "swiss"]
[EventCountry "IND"]
[SourceTitle "playchess.com"]
[Source "ChessBase"]
[SourceQuality "1"]
[TimeControl "5400+30"]

1. e4 {[%emt 0:00:00]} Nc6 {[%emt 0:00:00]} 2. d4 {[%emt 0:00:00]} e5 {[%emt 0:00:00]} 3. d5 {[%emt 0:00:00]} Nce7 {[%emt 0:00:03]} 4. c4 {[%emt 0:00:39]} Ng6 {[%emt 0:00:12]} 5. Bd3 {[%emt 0:00:34]} Nf6 {[%emt 0:01:17]} 6. Ne2 {[%emt 0:00:26]} Bc5 {[%emt 0:00:49]} 7. h3 {[%emt 0:02:03]} a5 {[%emt 0:05:47]} 8. Nbc3 {[%emt 0:02:06]} O-O {[%emt 0:00:29]} 9. Na4 {[%emt 0:11:02]} Ba7 {[%emt 0:05:04]} 10. O-O {[%emt 0:02:09]} c6 {[%emt 0:01:26]} 11. Nac3 {[%emt 0:06:08]} d6 {[%emt 0:00:33]} 12. Ng3 {[%emt 0:06:28]} Bd7 {[%emt 0:03:44]} 13. Nce2 {[%emt 0:01:07]} cxd5 {[%emt 0:04:20]} 14. cxd5 {[%emt 0:03:51]} b5 {[%emt 0:03:45]} 15. Kh1 {[%emt 0:00:43]} Rc8 {[%emt 0:04:57]} 16. f4 {[%emt 0:16:10]} Ng4 {[%emt 0:05:08]} 17. Qe1 {[%emt 0:07:26]} exf4 {[%emt 0:03:39]} 18. Nxf4 {[%emt 0:00:42]} Qh4 {[%emt 0:01:41]} 19. Be2 {[%emt 0:16:15]} Rc2 {[%emt 0:12:02]} 20. Bxg4 {[%emt 0:14:59]} Bxg4 {[%emt 0:00:20]} 21. Nf5 {[%emt 0:00:56]} Qxe1 {[%emt 0:11:04]} 22. Rxe1 {[%emt 0:00:56]} Bxf5 {[%emt 0:00:45]} 23. exf5 {[%emt 0:00:29]} Ne5 {[%emt 0:00:10]} 1/2-1/2

[Event "2nd Gujarat Open 2019"]
[Site "Ahmedabad, Gujarat"]
[Date "2019.09.25"]
[Round "6.30"]
[White "Lakshmi Narayanan M V"]
[Black "Chaitanya Sairam Mogili"]
[Result "1/2-1/2"]
[ECO "A56"]
[WhiteElo "2188"]
[BlackElo "1908"]
[Annotator "NA"]
[PlyCount "50"]
[EventDate "2019.09.22"]
[EventType "swiss"]
[EventCountry "IND"]
[SourceTitle "playchess.com"]
[Source "ChessBase"]
[SourceQuality "1"]
[TimeControl "5400+30"]

1. d4 {[%emt 0:00:00]} Nf6 {[%emt 0:00:00]} 2. c4 {[%emt 0:00:00]} c5 {[%emt 0:00:00]} 3. e3 {[%emt 0:00:25]} g6 {[%emt 0:00:13]} 4. Nc3 {[%emt 0:00:29]} Bg7 {[%emt 0:00:45]} 5. Nf3 {[%emt 0:00:23]} O-O {[%emt 0:00:05]} 6. Be2 {[%emt 0:01:13]} cxd4 {[%emt 0:00:05]} 7. exd4 {[%emt 0:00:18]} d5 {[%emt 0:00:06]} 8. O-O {[%emt 0:00:24]} Nc6 {[%emt 0:00:16]} 9. h3 {[%emt 0:01:25]} dxc4 {[%emt 0:05:36]} 10. Bxc4 {[%emt 0:02:16]} b6 {[%emt 0:00:19]} 11. Re1 {[%emt 0:06:39]} Bb7 {[%emt 0:05:39]} 12. a3 {[%emt 0:04:56]} Rc8 {[%emt 0:02:37]} 13. Ba2 {[%emt 0:01:03]} Re8 {[%emt 0:04:33]} 14. Bxf7+ {[%emt 0:04:11]} Kxf7 {[%emt 0:06:26]} 15. Ng5+ {[%emt 0:03:07]} Kg8 {[%emt 0:00:23]} 16. Qb3+ {[%emt 0:01:41]} Nd5 17. Nxd5 {[%emt 0:03:37]} e6 {[%emt 0:08:43]} 18. Rxe6 {[%emt 0:19:26]} Rxe6 {[%emt 0:07:51]} 19. Nxe6 {[%emt 0:02:30]} Na5 {[%emt 0:31:44]} 20. Nxd8 {[%emt 0:04:04]} Nxb3 {[%emt 0:00:17]} 21. Nxb7 {[%emt 0:02:03]} Re8 {[%emt 0:00:19]} 22. Rb1 {[%emt 0:04:20]} Re1+ {[%emt 0:00:45]} 23. Kh2 {[%emt 0:00:07]} Bxd4 {[%emt 0:00:20]} 24. Nc3 {[%emt 0:05:28]} Rxc1 {[%emt 0:01:44]} 25. Rxc1 {[%emt 0:01:29]} Nxc1 {[%emt 0:00:06]} 1/2-1/2

[Event "2nd Gujarat Open 2019"]
[Site "Ahmedabad, Gujarat"]
[Date "2019.09.25"]
[Round "6.31"]
[White "Mehdi Hasan Parag"]
[Black "Saypuri Srithan"]
[Result "1/2-1/2"]
[ECO "C42"]
[WhiteElo "2183"]
[BlackElo "1865"]
[Annotator "NA"]
[PlyCount "60"]
[EventDate "2019.09.22"]
[EventType "swiss"]
[EventCountry "IND"]
[SourceTitle "playchess.com"]
[Source "ChessBase"]
[SourceQuality "1"]
[TimeControl "5400+30"]

1. e4 e5 {[%emt 0:07:38]} 2. Nf3 {[%emt 0:00:00]} Nf6 {[%emt 0:00:07]} 3. Nxe5 {[%emt 0:00:02]} d6 {[%emt 0:00:07]} 4. Nf3 {[%emt 0:00:04]} Nxe4 {[%emt 0:00:03]} 5. Nc3 {[%emt 0:00:17]} Nxc3 {[%emt 0:00:05]} 6. dxc3 {[%emt 0:00:07]} Be7 {[%emt 0:00:04]} 7. Be3 {[%emt 0:00:05]} Nc6 {[%emt 0:00:03]} 8. Qd2 {[%emt 0:00:11]} Be6 {[%emt 0:00:06]} 9. O-O-O {[%emt 0:00:08]} Qd7 {[%emt 0:00:02]} 10. a3 {[%emt 0:00:12]} a6 {[%emt 0:00:09]} 11. Nd4 {[%emt 0:00:31]} Nxd4 {[%emt 0:00:30]} 12. Bxd4 {[%emt 0:00:13]} O-O {[%emt 0:04:04]} 13. f4 {[%emt 0:02:56]} Rac8 {[%emt 0:02:21]} 14. h3 {[%emt 0:04:02]} c5 {[%emt 0:04:30]} 15. Bf2 {[%emt 0:02:48]} d5 {[%emt 0:09:36]} 16. g4 {[%emt 0:01:57]} d4 {[%emt 0:03:28]} 17. Bg2 {[%emt 0:05:01]} Bd5 {[%emt 0:03:52]} 18. Bxd5 {[%emt 0:00:39]} Qxd5 {[%emt 0:00:05]} 19. Kb1 {[%emt 0:02:13]} Rfd8 {[%emt 0:08:24]} 20. Rhe1 {[%emt 0:05:43]} Bf8 {[%emt 0:08:01]} 21. cxd4 {[%emt 0:00:36]} cxd4 {[%emt 0:07:25]} 22. Qxd4 {[%emt 0:01:24]} Qf3 {[%emt 0:01:45]} 23. Qxd8 {[%emt 0:02:38]} Rxd8 {[%emt 0:00:21]} 24. Rxd8 {[%emt 0:00:02]} Qxf2 {[%emt 0:00:11]} 25. Ree8 {[%emt 0:01:03]} Qf1+ {[%emt 0:00:14]} 26. Ka2 {[%emt 0:00:55]} Qc4+ {[%emt 0:00:16]} 27. Kb1 {[%emt 0:00:23]} Qf1+ {[%emt 0:00:05]} 28. Ka2 {[%emt 0:00:43]} Qc4+ {[%emt 0:00:04]} 29. Ka1 {[%emt 0:00:14]} Qf1+ {[%emt 0:00:05]} 30. Ka2 {[%emt 0:00:24]} Qc4+ {[%emt 0:00:06]} 1/2-1/2

[Event "2nd Gujarat Open 2019"]
[Site "Ahmedabad, Gujarat"]
[Date "2019.09.25"]
[Round "6.32"]
[White "Adarsh Tripathi"]
[Black "Sobh, Amrou"]
[Result "1/2-1/2"]
[ECO "A46"]
[WhiteElo "1915"]
[BlackElo "2172"]
[Annotator "NA"]
[PlyCount "97"]
[EventDate "2019.09.22"]
[EventType "swiss"]
[EventCountry "IND"]
[SourceTitle "playchess.com"]
[Source "ChessBase"]
[SourceQuality "1"]
[TimeControl "5400+30"]

1. d4 {[%emt 0:00:00]} Nf6 {[%emt 0:02:31]} 2. Nf3 {[%emt 0:00:00]} e6 {[%emt 0:01:50]} 3. e3 {[%emt 0:00:00]} c5 {[%emt 0:00:33]} 4. b3 {[%emt 0:00:00]} b6 {[%emt 0:01:11]} 5. Bb2 {[%emt 0:00:21]} Bb7 {[%emt 0:00:37]} 6. Bd3 {[%emt 0:00:09]} cxd4 {[%emt 0:00:54]} 7. exd4 {[%emt 0:00:07]} Be7 {[%emt 0:00:18]} 8. O-O {[%emt 0:00:24]} O-O {[%emt 0:00:06]} 9. Nbd2 {[%emt 0:00:04]} d6 {[%emt 0:00:19]} 10. Re1 {[%emt 0:00:07]} Nbd7 {[%emt 0:00:13]} 11. c4 {[%emt 0:00:07]} Re8 {[%emt 0:00:42]} 12. Rc1 {[%emt 0:00:19]} Nf8 {[%emt 0:01:53]} 13. Ne4 {[%emt 0:01:35]} Nxe4 {[%emt 0:03:30]} 14. Bxe4 {[%emt 0:00:07]} Bxe4 {[%emt 0:00:34]} 15. Rxe4 {[%emt 0:00:05]} d5 {[%emt 0:00:09]} 16. Re1 {[%emt 0:00:20]} dxc4 {[%emt 0:01:53]} 17. bxc4 {[%emt 0:00:06]} Ng6 {[%emt 0:01:23]} 18. d5 {[%emt 0:04:08]} Bf6 {[%emt 0:02:00]} 19. Bxf6 {[%emt 0:01:26]} Qxf6 {[%emt 0:00:15]} 20. dxe6 {[%emt 0:00:34]} Rxe6 {[%emt 0:00:36]} 21. c5 {[%emt 0:00:59]} Rd8 {[%emt 0:01:17]} 22. Qa4 {[%emt 0:00:29]} bxc5 {[%emt 0:05:08]} 23. Rxe6 {[%emt 0:00:07]} Qxe6 {[%emt 0:00:50]} 24. Qxa7 {[%emt 0:00:09]} Qd5 {[%emt 0:12:18]} 25. h3 {[%emt 0:03:45]} Rc8 {[%emt 0:02:02]} 26. Qa6 {[%emt 0:00:19]} Qd7 {[%emt 0:01:08]} 27. Qc4 {[%emt 0:00:28]} h6 {[%emt 0:01:08]} 28. Re1 {[%emt 0:00:13]} Qc7 {[%emt 0:03:35]} 29. Rc1 {[%emt 0:02:22]} Qf4 {[%emt 0:01:58]} 30. a4 {[%emt 0:00:54]} Qxc4 {[%emt 0:01:03]} 31. Rxc4 {[%emt 0:00:06]} Kf8 {[%emt 0:00:09]} 32. Nd2 {[%emt 0:01:18]} Ne5 {[%emt 0:00:51]} 33. Rc3 {[%emt 0:00:39]} Ke7 {[%emt 0:00:58]} 34. Re3 {[%emt 0:01:25]} Kd6 {[%emt 0:02:59]} 35. Ne4+ {[%emt 0:00:05]} Kd7 {[%emt 0:00:52]} 36. f4 {[%emt 0:00:39]} Ng6 {[%emt 0:01:23]} 37. Rc3 {[%emt 0:01:01]} Nxf4 {[%emt 0:02:19]} 38. Nxc5+ {[%emt 0:00:15]} Ke7 {[%emt 0:01:01]} 39. Re3+ {[%emt 0:00:27]} Kd6 {[%emt 0:01:56]} 40. Ne4+ {[%emt 0:01:28]} Kd5 {[%emt 0:01:05]} 41. Nf2 {[%emt 0:01:13]} Rc1+ {[%emt 0:05:19]} 42. Kh2 {[%emt 0:00:38]} Ra1 {[%emt 0:00:12]} 43. Rf3 {[%emt 0:00:59]} Rxa4 {[%emt 0:02:11]} 44. g3 {[%emt 0:00:03]} Ne6 {[%emt 0:01:17]} 45. Rxf7 {[%emt 0:00:11]} Ra2 {[%emt 0:00:25]} 46. h4 {[%emt 0:00:33]} Rc2 {[%emt 0:02:41]} 47. Kh3 {[%emt 0:00:45]} Rc7 {[%emt 0:00:43]} 48. Rxc7 {[%emt 0:00:23]} Nxc7 {[%emt 0:00:01]} 49. Kg4 1/2-1/2

[Event "2nd Gujarat Open 2019"]
[Site "Ahmedabad, Gujarat"]
[Date "2019.09.25"]
[Round "6.33"]
[White "Sparsh Khandelwal"]
[Black "Harshita Guddanti"]
[Result "1/2-1/2"]
[ECO "C24"]
[WhiteElo "1868"]
[BlackElo "2168"]
[Annotator "NA"]
[PlyCount "109"]
[EventDate "2019.09.22"]
[EventType "swiss"]
[EventCountry "IND"]
[SourceTitle "playchess.com"]
[Source "ChessBase"]
[SourceQuality "1"]
[TimeControl "5400+30"]

1. e4 {[%emt 0:00:00]} e5 {[%emt 0:00:10]} 2. Bc4 {[%emt 0:00:11]} Nf6 {[%emt 0:00:13]} 3. d3 {[%emt 0:00:05]} Bc5 {[%emt 0:00:24]} 4. Nc3 {[%emt 0:00:08]} Nc6 {[%emt 0:00:43]} 5. h3 {[%emt 0:00:22]} a6 {[%emt 0:00:44]} 6. Nge2 {[%emt 0:00:30]} h6 {[%emt 0:00:52]} 7. O-O {[%emt 0:00:05]} d6 {[%emt 0:00:51]} 8. Be3 {[%emt 0:00:51]} Bxe3 {[%emt 0:01:05]} 9. fxe3 {[%emt 0:00:05]} Na5 {[%emt 0:06:30]} 10. Nd5 {[%emt 0:02:32]} Nxc4 {[%emt 0:02:06]} 11. Nxf6+ {[%emt 0:00:06]} gxf6 {[%emt 0:00:04]} 12. dxc4 {[%emt 0:00:03]} Be6 {[%emt 0:04:28]} 13. b3 {[%emt 0:00:12]} Qd7 {[%emt 0:08:59]} 14. Ng3 {[%emt 0:09:03]} O-O-O {[%emt 0:06:08]} 15. Kh2 {[%emt 0:01:55]} Rdg8 {[%emt 0:02:41]} 16. Nh5 {[%emt 0:15:12]} Rg6 {[%emt 0:03:41]} 17. Qf3 {[%emt 0:00:44]} Qd8 {[%emt 0:03:43]} 18. Rf2 {[%emt 0:01:38]} Qf8 {[%emt 0:04:21]} 19. a4 {[%emt 0:01:14]} Rg5 {[%emt 0:01:09]} 20. Rg1 {[%emt 0:01:21]} f5 {[%emt 0:02:24]} 21. exf5 {[%emt 0:00:10]} Rxf5 {[%emt 0:00:47]} 22. Qe2 {[%emt 0:00:10]} Rxf2 {[%emt 0:02:30]} 23. Qxf2 {[%emt 0:00:03]} f5 {[%emt 0:01:11]} 24. Rf1 {[%emt 0:00:05]} Qf7 {[%emt 0:02:23]} 25. Qh4 {[%emt 0:00:39]} Qg6 {[%emt 0:08:18]} 26. Qf6 {[%emt 0:05:19]} Qxf6 {[%emt 0:01:17]} 27. Nxf6 {[%emt 0:00:04]} c6 {[%emt 0:01:43]} 28. Nh5 {[%emt 0:01:51]} Rh7 {[%emt 0:08:25]} 29. Rd1 {[%emt 0:00:53]} Kc7 {[%emt 0:03:23]} 30. Nf6 {[%emt 0:00:06]} Rh8 {[%emt 0:01:05]} 31. Rf1 {[%emt 0:00:46]} Rf8 {[%emt 0:01:18]} 32. Nh5 {[%emt 0:00:05]} Rf7 {[%emt 0:01:33]} 33. Ng3 {[%emt 0:01:28]} b6 {[%emt 0:01:11]} 34. Rf2 {[%emt 0:00:17]} d5 {[%emt 0:01:34]} 35. cxd5 {[%emt 0:01:12]} cxd5 {[%emt 0:00:06]} 36. Kg1 {[%emt 0:01:11]} Kd6 {[%emt 0:02:36]} 37. Kf1 {[%emt 0:02:28]} f4 {[%emt 0:02:14]} 38. exf4 {[%emt 0:00:04]} Rxf4 {[%emt 0:00:31]} 39. Rxf4 {[%emt 0:01:25]} exf4 {[%emt 0:00:06]} 40. Ne2 {[%emt 0:00:03]} Ke5 {[%emt 0:01:43]} 41. Kf2 {[%emt 0:00:52]} d4 {[%emt 0:01:53]} 42. Nc1 {[%emt 0:00:21]} Ke4 {[%emt 0:04:34]} 43. Ke2 {[%emt 0:01:11]} Bf7 {[%emt 0:01:05]} 44. Kd2 {[%emt 0:07:00]} f3 {[%emt 0:05:15]} 45. gxf3+ {[%emt 0:00:04]} Kxf3 {[%emt 0:00:08]} 46. Ne2 {[%emt 0:00:04]} h5 {[%emt 0:02:43]} 47. Nxd4+ {[%emt 0:00:20]} Kg3 {[%emt 0:00:17]} 48. Ke3 {[%emt 0:00:37]} Kxh3 {[%emt 0:01:18]} 49. c4 {[%emt 0:00:39]} Kg2 {[%emt 0:01:21]} 50. Nf5 {[%emt 0:00:36]} Be6 {[%emt 0:00:27]} 51. Ng7 {[%emt 0:00:06]} Bg4 {[%emt 0:00:17]} 52. Nxh5 {[%emt 0:00:02]} Bxh5 {[%emt 0:00:18]} 53. b4 {[%emt 0:00:33]} Be8 {[%emt 0:00:35]} 54. b5 {[%emt 0:00:53]} axb5 {[%emt 0:00:48]} 55. axb5 {[%emt 0:00:02]} 1/2-1/2